Cogmind - Beta 16.1 @@@ ROGUE MODE // 2026.02.27 @ 16:33:56 Player: Ceorik Result: Destroyed by 1O-DTT(R) with Subdweller Beam Cannon Performance ------------- Evolutions (0) 0 Regions Visited (2) 400 Robots Destroyed (30) 150 Value Destroyed (628) 628 Prototype IDs (0) 0 Alien Tech Used (0) 0 Bonus (0) 0 TOTAL SCORE: 1178 Bonus ------- None Cogmind --------- Core Integrity 0/250 Matter 248/300 Energy 118/160 System Corruption 0% Temperature Hot (247) Movement Treading (480) Ox4 Location -10/Subcaves Parts ------- > --- POWER (1) -------- Light Nuclear Core > --- PROPULSION (2) --- Light Treads Wheel > --- UTILITY (2) ------ Huge Storage Unit Light Armor Plating > --- WEAPON (2) ------- Small Laser Small Laser > --- INVENTORY (25) --- Reinforced Ion Engine Light Nuclear Core Light Treads Wheel Improved Heat Sink Small Storage Unit Small Matter Pod (50) Medium Matter Pod (100) Medium Matter Pod (100) Medium Matter Pod (100) Medium Matter Pod (1) High-capacity Matter Pod (100) Propulsion Shielding Propulsion Shielding Weapon Shielding Weapon Shielding Weapon Shielding Weapon Shielding Weapon Shielding Light Armor Plating Hacking Suite Small Laser Small Laser Peak State ------------ > --- POWER ------------ Light Nuclear Core > --- PROPULSION ------- Light Treads Wheel > --- UTILITY ---------- Huge Storage Unit Light Armor Plating > --- WEAPON ----------- Small Laser Small Laser > --- INVENTORY -------- Reinforced Ion Engine Light Nuclear Core Light Treads Wheel Improved Heat Sink Small Storage Unit Small Matter Pod Medium Matter Pod Medium Matter Pod Medium Matter Pod Medium Matter Pod High-capacity Matter Pod Propulsion Shielding Propulsion Shielding Weapon Shielding Weapon Shielding Weapon Shielding Weapon Shielding Weapon Shielding Light Armor Plating Hacking Suite Small Laser Small Laser [Rating: 12] Favorites ----------- Power Reinforced Ion Engine Engine Reinforced Ion Engine Power Core Light Nuclear Core Propulsion Light Treads Treads Light Treads Wheel Wheel Utility Small Storage Unit Device Seismic Detector Storage Small Storage Unit Protection Light Armor Plating Weapon Light Assault Rifle Energy Gun Small Laser Ballistic Gun Light Assault Rifle Build | -11 -10 -10 ------- Run | Yrd Mat Sub Slots Evolved . | . . . Power . | . . . Propulsion . | . . . Utility . | . . . Weapon . | . . . Parts Attached 20 | 7 12 1 Power 3 | 1 1 1 Engine 2 | 1 1 . Core 1 | . . 1 Reactor . | . . . Propulsion 6 | 2 4 . Treads 3 | 2 1 . Leg . | . . . Wheel 3 | . 3 . Hover . | . . . Flight . | . . . Utility 6 | 2 4 . Device 1 | 1 . . Storage 2 | 1 1 . Processor . | . . . Hackware . | . . . Protection 3 | . 3 . Artifact . | . . . Weapon 5 | 2 3 . Energy Gun 2 | . 2 . Energy Cannon . | . . . Ballistic Gun 3 | 2 1 . Ballistic Cannon . | . . . Launcher . | . . . Special Weapon . | . . . Impact Weapon . | . . . Slashing Weapon . | . . . Piercing Weapon . | . . . Special Melee Weapon . | . . . Unidentified Prototypes . | . . . Parts Lost 4 | . 2 2 Power 1 | . . 1 Propulsion 2 | . 1 1 Utility 1 | . 1 . Weapon . | . . . Highest Loss Streak 2 | . 1 2 To Critical Strikes . | . . . Average Backups 11 | . 10 25 Power 1 | . 1 3 Propulsion . | . . 3 Utility 8 | . 7 17 Weapon . | . . 2 Tool/Special . | . . . Unused Backups 22 | . 1 21 Power 2 | . . 2 Propulsion 1 | . . 1 Utility 17 | . 1 16 Weapon 2 | . . 2 Tool/Special . | . . . Average Slot Usage (%) 98 | . 98 100 Engine 13 | . 14 13 Treads 16 | . 18 . Wheel 11 | . 9 27 Device 1 | . 2 . Storage 14 | . 14 14 Protection 11 | . 10 14 Energy Gun 4 | . . 28 Ballistic Gun 24 | . 27 . Peak Build Rating 12 | 7 11 12 Average Rating 8 | 5 8 11 On Entrance 6 | . 7 11 Avg Prop Armor Cover (%) 9 | . 9 . Naked Turns . | . . . Heaviest Build 96 | 12 96 95 Greatest Support 40 | 40 40 26 Greatest Overweight (x) 4 | . 4 3 Average Overweight (x) 2 | . 2 3 Largest Inventory Capacity 25 | 8 25 25 Average Capacity 14 | 7 13 25 Most Carried 25 | 1 25 25 Average Carried 11 | . 10 24 Final Capacity 25 | 8 25 25 Final Carried 25 | 1 25 23 Class Distribution -------------------- 100% | Mutant Dominant Class ---------------- Mutant | -10/Materials Mutant | -10/Subcaves Resources | -11 -10 -10 ----------- Run | Yrd Mat Sub Matter Collected 1267 | 276 991 . Remotely . | . . . Salvage Created 1001 | 60 941 . Parts 66 | 8 58 . Haulers Intercepted . | . . . Recyclers Shooed 1 | . 1 . Parts Field Recycled . | . . . Retrieved Matter . | . . . Parts Self-Destructed 1 | . . 1 Prevented . | . . . Parts Restored . | . . . Kills | -11 -10 -10 ------- Run | Yrd Mat Sub Combat Hostiles Destroyed 17 | . 17 . Guns 17 | . 17 . Classes Destroyed 7 | 1 6 . Worker 5 | . 5 . Tunneler 3 | 3 . . Recycler 2 | . 2 . Mechanic 1 | . 1 . Operator 2 | . 2 . Swarmer 3 | . 3 . Grunt 14 | . 14 . Best Kill Streak 5 | 2 5 . Combat Bots Only 3 | . 3 . Max Kills in Single Turn 1 | 1 1 . Gunslinging . | . . . Exploded . | . . . Melee . | . . . Uniques/NPCs Destroyed . | . . . Combat | -11 -10 -10 -------- Run | Yrd Mat Sub Hostile Shots Fired 117 | . 104 13 Missed 24 | . 22 2 Hits 93 | . 82 11 Projectile 93 | . 82 11 Critical Strikes 3 | . 2 1 Damage Taken 1247 | . 934 313 Core 254 | . 168 86 Absorbed by Shields . | . . . Redirected to Shielding 15 | . 15 . Core Remaining (%) 100 | 100 . . Volleys Fired 114 | 6 105 3 Largest 2 | 2 2 2 Hottest 80 | 40 40 80 Shots Fired 228 | 12 210 6 Gun 228 | 12 210 6 Cannon . | . . . Launcher . | . . . Special . | . . . Kinetic 222 | 12 210 . Thermal 6 | . . 6 Explosive . | . . . Electromagnetic . | . . . Robot Hit Streak 15 | 4 15 6 Robot Miss Streak 5 | 1 5 . Penetration Max . | . . . Secondary Targets 3 | . 3 . Max Gunslinging Chain 1 | . 1 . Shots Hit Robots 153 | 7 140 6 Core Hits 63 | 6 56 1 Critical Kills 1 | . 1 . Critical Parts Destroyed 1 | . 1 . Critical Strikes 2 | . 2 . Destroy 2 | . 2 . Melee Attacks . | . . . Impact . | . . . Slashing . | . . . Piercing . | . . . Sneak Attacks . | . . . Combat Hostiles . | . . . Follow-up Attacks . | . . . Damage Inflicted 1622 | 66 1488 68 Guns 1614 | 66 1480 68 Cannons . | . . . Explosions . | . . . Melee . | . . . Ramming 8 | . 8 . Kinetic 1546 | 66 1480 . Thermal 68 | . . 68 Explosive . | . . . Electromagnetic . | . . . Impact . | . . . Slashing . | . . . Piercing . | . . . Highest Corruption . | . . . Average Corruption . | . . . Corruption Purged . | . . . Corruption Blocked . | . . . Overload Shots . | . . . Overflow Damage . | . . . Projectiles . | . . . Explosions . | . . . Melee . | . . . Knockbacks . | . . . Impact . | . . . Kinetic . | . . . Secondary . | . . . Self-Inflicted Damage 1 | . 1 . Shots . | . . . Rammed 2 | . 2 . Targets Rammed 2 | . 2 . Kicked . | . . . Crushed . | . . . Highest Temperature 304 | . 156 304 Average Temperature 45 | . 38 258 Received Heat Transfer 897 | . 498 399 Effects 1 | . . 1 Energy Bleed 1 | . . 1 Siege Activations . | . . . Martial Activations . | . . . Shielding Activations . | . . . Robots Disrupted . | . . . Combat Hostiles . | . . . Robots Corrupted . | . . . Combat Hostiles . | . . . Parts Fried . | . . . Impact Corruptions . | . . . Robots Melted . | . . . Combat Hostiles . | . . . Parts Melted . | . . . Heat Transferred 150 | . . 150 Parts Sabotaged . | . . . Parts Stolen . | . . . Parts Stripped . | . . . Power Chain Reactions . | . . . Alert | -11 -10 -10 ------- Run | Yrd Mat Sub Maximum Alert Level . | . . . Low Security (%) 100 | 100 100 . Level 1 . | . . . Level 2 . | . . . Level 3 . | . . . Level 4 . | . . . Level 5 . | . . . High Security . | . . . Max Security . | . . . Peak Influence 95 | 5 95 . Initial . | . . . Average 20 | . 21 . Influence Increases 485 | 15 470 . Destroy 0b10 Robot/C 340 | . 340 . Destroy 0b10 Robot/NC 65 | 15 50 . Destroy Leader 70 | . 70 . Successful Hack 10 | . 10 . Influence Decreases 485 | 15 442 28 Entered New Map 14 | . . 14 Time Decay 461 | 15 432 14 Lost Part 10 | . 10 . Squads Dispatched 5 | . 5 . Investigation 2 | . 2 . Extermination . | . . . Reinforcement 3 | . 3 . Assault . | . . . Garrison . | . . . Intercept . | . . . Searches Triggered . | . . . Construction Impeded . | . . . Haulers Reinforced . | . . . Active Scanning Responses . | . . . Cargo Convoy Interrupts . | . . . Stealth | -11 -10 -10 --------- Run | Yrd Mat Sub Distress Signals 3 | . 3 . Communications Jammed . | . . . Distress Signals . | . . . Times Spotted 50 | . 48 2 Peak Tracking Total 5 | . 5 2 Tactical Retreats . | . . . Traps | -11 -10 -10 ------- Run | Yrd Mat Sub Traps Triggered 2 | . 2 . Indirectly . | . . . Trap Hack Attempts . | . . . Triggered . | . . . Disarmed . | . . . Reprogrammed . | . . . Reused . | . . . Traps Extracted . | . . . Installed . | . . . Triggered . | . . . Machines | -11 -10 -10 ---------- Run | Yrd Mat Sub Machines Disabled . | . . . Max in Single Turn . | . . . Machines Repaired . | . . . Machines Dismantled . | . . . Machines Sabotaged . | . . . Overloaded Fab Kills . | . . . Hacking | -11 -10 -10 --------- Run | Yrd Mat Sub Machines Accessed 7 | . 7 . Terminals 5 | . 5 . Fabricators . | . . . Repair Stations . | . . . Recycling Units 2 | . 2 . Scanalyzers . | . . . Garrison Access . | . . . Total Hacks 20 | . 20 . Successful 13 | . 13 . Failed 7 | . 7 . Catastrophic . | . . . Database Lockouts . | . . . Manual 7 | . 7 . Terminals 15 | . 15 . Fabricators . | . . . Repair Stations . | . . . Recycling Units 5 | . 5 . Scanalyzers . | . . . Garrison Access . | . . . Terminal Hacks 5 | . 5 . Robot Analysis 2 | . 2 . Locate Traps 1 | . 1 . Recall Reinforcements 1 | . 1 . Hauler Manifests 1 | . 1 . Fabricator Hacks . | . . . Repair Station Hacks . | . . . Recycling Unit Hacks 3 | . 3 . Process 1 | . 1 . Report Inventory 2 | . 2 . Scanalyzer . | . . . Garrison Access Hacks . | . . . Unauthorized Hacks 5 | . 5 . Terminals 5 | . 5 . Botnet 5 | . 5 . Fabricators . | . . . Repair Stations . | . . . Recycling Units . | . . . Scanalyzers . | . . . Garrison Access . | . . . Data Cores Recovered . | . . . Used . | . . . Hacking Detections 5 | . 5 . Full Trace Events . | . . . Feedback Events . | . . . Feedback Blocked . | . . . Robot Schematics Acquired . | . . . Robots Built . | . . . Authchips . | . . . Time . | . . . Total Robot Build Rating . | . . . Part Schematics Acquired . | . . . Parts Built . | . . . Authchips . | . . . Time . | . . . Total Part Build Rating . | . . . Part Studies Acquired . | . . . Parts Repaired . | . . . Time . | . . . Parts Recycled . | . . . Recycled Matter 13 | . 13 . Retrieved Matter . | . . . Retrieved Components . | . . . Parts Scanalyzed . | . . . Part Schematics Acquired . | . . . Parts Damaged . | . . . Bothacking | -11 -10 -10 ------------ Run | Yrd Mat Sub Used RIF Installer . | . . . Robots Hacked . | . . . Non-combat . | . . . Combat . | . . . Robot Hacks Applied . | . . . Relay Couplers Released . | . . . Fabnet Peak Effective % . | . . . Robots Rewired . | . . . Allies Hacked . | . . . Hacks Repelled . | . . . Allies | -11 -10 -10 -------- Run | Yrd Mat Sub Total Allies . | . . . Largest Group . | . . . Highest-Rated Group . | . . . Highest-Rated Ally . | . . . Total Orders . | . . . Ally Attacks . | . . . Total Damage . | . . . Kills . | . . . Allies Corrupted . | . . . Allies Melted . | . . . Intel | -11 -10 -10 ------- Run | Yrd Mat Sub Active Infowar (turns) 436 | 16 420 . Seismic 436 | 16 420 . Robot Analysis Total 2 | . 2 . Derelict Logs Recovered 1 | . . 1 Drone Launches . | . . . Drone Recoveries . | . . . Exploration | -11 -10 -10 ------------- Run | Yrd Mat Sub Turns Passed 3361 | 162 2834 365 Spaces Moved 1428 | 85 1120 223 Core 4 | 4 . . Treads 531 | 81 450 . Legs . | . . . Wheels 893 | . 670 223 Hover . | . . . Flight . | . . . Fastest Speed 50 | 50 95 135 Average Speed 143 | 154 144 135 Slowest Speed 160 | 160 160 135 Overloaded Moves . | . . . Propulsion Burnouts . | . . . Robots Hopped . | . . . Potential Cave-ins . | . . . Cave-ins Triggered . | . . . Exploration Rate (%) 39 | 5 99 14 Regions Visited 2 Branch Regions 1 Pre-discovered Areas 1 | . . 1 Known Exits Taken . | . . . Unknown Exits Taken 2 | 1 1 . Scrap Searched . | . . . Spaces Dug . | . . . Terrain Destroyed . | . . . Melee . | . . . Projectile . | . . . AOE . | . . . Terrain Rammed . | . . . Walls Destroyed . | . . . Machines Disabled . | . . . Actions | -11 -10 -10 --------- Run | Yrd Mat Sub Total 2523 | 101 2140 282 Wait 917 | 3 860 54 Move 1426 | 84 1119 223 Hop . | . . . Pick Up 29 | 1 28 . Fast Attach 11 | 7 4 . Attach 5 | . 3 2 Detach 1 | . 1 . Swap 9 | . 9 . Drop 9 | . 9 . Fire 114 | 6 105 3 Melee . | . . . Ram 1 | . 1 . Kick . | . . . Crush 1 | . 1 . Escape Stasis . | . . . Rewire . | . . . Trap . | . . . Miscellaneous . | . . . Route ------- -11/Scrapyard -10/Materials (discovered 6 exits: [*Mat x3] / [*Min x2] / [*Sub]) -10/Subcaves History --------- Turn | Location | Event 5 | -11/Scrapyard | Discovered new exit (range 14) 163 | -11/Scrapyard | Entered Materials 313 | -10/Materials | Build established: Mutant 570 | -10/Materials | Discovered new exit (range 13) 1710 | -10/Materials | Discovered new exit (range 6) 1761 | -10/Materials | Discovered new exit (range 8) 1768 | -10/Materials | Core integrity fell below 50% 2204 | -10/Materials | Discovered new exit (range 9) 2296 | -10/Materials | Discovered new exit (range 16) 2414 | -10/Materials | Discovered new exit (range 8) 2997 | -10/Materials | Entered Subcaves 2998 | -10/Subcaves | Approached by a straggling Scientist 3000 | -10/Subcaves | A swath of the cavern ceiling suddenly collapsed 3335 | -10/Subcaves | Learned location of Zion (-7) 3362 | -10/Subcaves | Destroyed by 1O-DTT(R) with Subdweller Beam Cannon Last Messages --------------- collapses. 03002_ AN-8U5(c): "Hey, let me tag along and I can get us both out of this nasty situation. At least I think I can... The group I got separated from was talking about a shortcut back to the UFD." AN-8U5(c): "I think it's somewhere northeast of here" AN-8U5(c): "I think it's somewhere east of here" AN-8U5(c): "I think it's somewhere northeast of here" AN-8U5(c): "I think it's somewhere east of here" 03335_ Acquired derelict log, extracted data. World map updated: -7/Zion. 03353_ Com. Wheel destroyed. 03353_ Critical hit (Meltdown: +300). 03354_ Overheating: Energy bleed (-33). 03356_ Rnf. Ion Engine destroyed. 03362_ Subatomizers dissect the Machine Analyzer. Map ----- +----------------------------------------------------+ | ???????????????????????????????????????????????? | | ???????????????????????????????????????????????? | | ???????????????????????????????????????????????? | | ???????????????????????????????????????????????? | | ???????????????????????????????????????????????? | | ???????????????????????????????????????????????? | | ???????????????????????????????????????????????? | | ???????????????????????????????????????????????? | | ???????????????????????????????????????????????? | | ???????????????????????????????????????????????? | | ??????????????????? ???????????????????????????? | | ??????????????????# ???????????????????????????? | | ??????????????????# ???????????????????????????? | | ?????????????????? #??????????????????????????? | | ?????????????????? #?????????????????????????? | | ??????????????????? ##???????????????????????? | | ??????????????????? ????????????????????????? | | ??????????????????? ????????????????????????? | | ???????????????????# ????????????????????????? | | ???????????????????# ????????????????????????? | | ???????????????????# ????????????????????????? | | ???????????????????# ????????????????????????? | | ???????????????????# #????????????????????????? | | ??????????????????## #????????????????????????? | | ??????????????????#; !####?????????????????????? | | ???????????????????# R@ #?????????????????????? | | ???????????????????# R ##?????????????????????? | | ???????????????????### #?????????????????????? | | ????????????????????## #?????????????????????? | | ????????????????????# ##?????????????????????? | | ????????????????????# #??????????????????????? | | ????????????????????# ####???????????????????? | | ????????????????????# ## #???????????????????? | | ????????????????????## ###?????????????????? | | ????????????????????## #?????????????????? | | ????????????????????# #?????????????????? | | ???????????????????## ###?????????????????? | | ??????????????????## ##???????????????????? | | ??????????????????# ##???????????????????? | | ??????????????????# ##??????????????????? | | ??????????????????## ###????????????????? | | ???????????????????# ##???????????????? | | ???????????????????# #???????????????? | | ???????????????????# ##???????????????? | | ???????????????????# # ###????????????????? | | ????????????????# ## ###????????????????? | | ???????????????# ## ######???????????? | | ???????????????# ### # ##??????????? | | ???????????????# ??# # #??????????? | | ???????????????# ??### #### ##??????????? | +----------------------------------------------------+ Best States ------------- Heat Dissipation 25 Energy Generation 14 Energy Capacity 265 Matter Stores 300 Matter Capacity 300 Sight Range 16 Terrain Scan Density 10 Armor Coverage 150 Propulsion Shielding 33 Evasion (%) 41 Recoil Reduction 2 Item Schematics ----------------- None Robot Schematics ------------------ None Fabricated ------------ Nothing Repaired ---------- Nothing Studied --------- None Alien Tech Used ----------------- None Achievements -------------- None Challenges ------------ None Game ------ Seed CoolantVampiricSuite Manual? 0 Play Time 00:17:21 Cumulative 81.7 hours Start 2026.02.27 @ 16:18:16 End 2026.02.27 @ 16:33:56 Sessions 1 Manual Loads 0 Difficulty Rogue Special Mode None Game No. 81 Rogue 81 Adventurer 0 Explorer 0 Win Type - Total 0 Types 0/0/0/0/0/0/0/0/0/0 Lore% 59 Gallery% 45 Achievement% 37 Wizard Run 0 Options --------- Layout 1 ASCII 0 Keyboard 0 Movement Mouse Keybinds 0 Fullscreen 1 Font 24/Swanston Map View 50x35 Zoom Use 0% Tactical HUD 1 Map Filters NONE Filters NONE Steam 1 RUN: c105fdcd-b7e6-417c-85c4-59c7e296f242